fUST/lending_fUST_20251026
["ID","MTS","AMOUNT","RATE_DAILY","PERIOD"]
[392428354,1761465076329,-500.0,0.00017808,2]
[392428355,1761465076339,-500.0,0.00017808,2]
[392428356,1761465076348,-500.0,0.00017808,2]
[392428357,1761465076357,-508.76572858,0.00017808,2]
[392428358,1761465076367,-1022.71,0.00017808,2]
[392428359,1761465076375,-500.0,0.00017808,2]
[392428360,1761465076385,-500.0,0.00017808,2]
[392428361,1761465076394,-500.0,0.00017808,2]
[392428362,1761465076403,-816.59,0.00017808,2]
[392428363,1761465076411,-500.0,0.00017808,2]
[392428364,1761465076421,-1068.51,0.00017808,2]
[392428365,1761465076431,-500.0,0.00017808,2]
[392428366,1761465076441,-751.87,0.00017808,2]
[392428367,1761465076451,-1197.52,0.00017808,2]
[392428368,1761465076461,-1161.27,0.00017808,2]
[392428369,1761465076471,-500.0,0.00017808,2]
[392428370,1761465076482,-500.0,0.00017808,2]
[392428371,1761465076493,-500.0,0.00017808,2]
[392428372,1761465076503,-722.78,0.00017808,2]
[392428373,1761465076514,-1139.52,0.00017808,2]
[392428374,1761465076523,-694.35,0.00017808,2]
[392428375,1761465076532,-1024.4,0.00017808,2]
[392428376,1761465076541,-500.0,0.00017808,2]
[392428377,1761465076679,-307.58395059,0.00017808,2]
[392428378,1761465076689,-500.0,0.00017808,2]
[392428379,1761465076699,-500.0,0.00017808,2]
[392428380,1761465076708,-500.0,0.00017808,2]
[392428381,1761465076718,-604.05,0.00017808,2]
[392428382,1761465076728,-500.0,0.00017808,2]
[392428383,1761465076738,-500.0,0.00017808,2]
[392428384,1761465076747,-500.0,0.00017808,2]
[392428385,1761465076758,-500.0,0.00017808,2]
[392428386,1761465076768,-500.0,0.00017808,2]
[392428387,1761465076778,-469.00539414,0.00017808,2]
[392428388,1761465076788,-500.0,0.00017808,2]
[392428389,1761465076798,-500.0,0.00017808,2]
[392428390,1761465076807,-720.79,0.00017808,2]
[392428391,1761465076816,-822.01,0.00017808,2]
[392428392,1761465076826,-500.0,0.00017808,2]
[392428393,1761465076838,-578.06953967,0.00017808,2]
[392428394,1761465076848,-791.3,0.00017808,2]
[392428395,1761465076857,-1373.22,0.00017808,2]
[392428396,1761465076867,-500.0,0.00017808,2]
[392428397,1761465076876,-500.0,0.00017808,2]
[392428398,1761465076887,-1124.15,0.00017808,2]
[392428399,1761465076897,-1133.45,0.00017808,2]
[392428400,1761465076906,-500.0,0.00017808,2]
[392428401,1761465076915,-500.0,0.00017808,2]
[392428402,1761465076925,-579.37,0.00017808,2]
[392428403,1761465076934,-834.52,0.00017808,2]
[392428404,1761465076946,-734.95,0.00017808,2]
[392428405,1761465076957,-500.0,0.00017808,2]
[392428406,1761465076968,-500.0,0.00017808,2]
[392428407,1761465076977,-500.0,0.00017808,2]
[392428408,1761465076989,-500.0,0.00017808,2]
[392428409,1761465076999,-500.0,0.00017808,2]
[392428410,1761465077008,-500.0,0.00017808,2]
[392428411,1761465077018,-519.96,0.00017808,2]
[392428412,1761465077028,-500.0,0.00017808,2]
[392428413,1761465077037,-500.0,0.00017808,2]
[392428414,1761465077047,-500.0,0.00017808,2]
[392428415,1761465077055,-1043.96,0.00017808,2]
[392428416,1761465077065,-500.0,0.00017808,2]
[392428417,1761465077074,-717.23,0.00017808,2]
[392428418,1761465077083,-500.0,0.00017808,2]
[392428419,1761465077092,-754.11,0.00017808,2]
[392428420,1761465077103,-500.0,0.00017808,2]
[392428421,1761465077111,-500.0,0.00017808,2]
[392428422,1761465077121,-500.0,0.00017808,2]
[392428423,1761465077131,-500.0,0.00017808,2]
[392428424,1761465077143,-556.7,0.00017808,2]
[392428425,1761465077152,-596.45,0.00017808,2]
[392428426,1761465077162,-500.0,0.00017808,2]
[392428427,1761465077172,-500.0,0.00017808,2]
[392428428,1761465077181,-1625.42,0.00017808,2]
[392428429,1761465077190,-727.75,0.00017808,2]
[392428430,1761465077199,-500.0,0.00017808,2]
[392428431,1761465077209,-545.20693581,0.00017808,2]
[392428432,1761465077219,-500.0,0.00017808,2]
[392428433,1761465077230,-500.0,0.00017808,2]
[392428434,1761465077240,-2020.6,0.00017808,2]
[392428435,1761465077252,-500.0,0.00017808,2]
[392428436,1761465077262,-500.0,0.00017808,2]
[392428437,1761465077273,-958.14,0.00017808,2]
[392428438,1761465077282,-500.0,0.00017808,2]
[392428439,1761465077293,-799.25,0.00017808,2]
[392428440,1761465077303,-802.12,0.00017808,2]
[392428441,1761465077312,-500.0,0.00017808,2]
[392428442,1761465077321,-259.52765006,0.00017808,2]
[392428443,1761465077330,-1511.53,0.00017808,2]
[392428444,1761465077341,-536.38,0.00017808,2]
[392428445,1761465077352,-500.0,0.00017808,2]
[392428446,1761465077361,-977.83,0.00017808,2]
[392428447,1761465077371,-1018.09,0.00017808,2]
[392428448,1761465077380,-1217.77,0.00017808,2]
[392428449,1761465077389,-605.45164824,0.00017808,2]
[392428450,1761465077400,-735.46,0.00017808,2]
[392428451,1761465077411,-500.0,0.00017808,2]
[392428452,1761465077422,-500.0,0.00017808,2]
[392428453,1761465077431,-532.95,0.00017808,2]
[392428454,1761465077443,-565.47,0.00017808,2]
[392428455,1761465077454,-928.31,0.00017808,2]
[392428456,1761465077466,-520.86,0.00017808,2]
[392428457,1761465077476,-500.0,0.00017808,2]
[392428458,1761465077487,-500.0,0.00017808,2]
[392428459,1761465077497,-816.06,0.00017808,2]
[392428460,1761465077506,-507.03799256,0.00017808,2]
[392428461,1761465077515,-500.0,0.00017808,2]
[392428462,1761465077525,-1060.12,0.00017808,2]
[392428463,1761465077536,-500.0,0.00017808,2]
[392428464,1761465077545,-992.37,0.00017808,2]
[392428465,1761465077554,-1689.08,0.00017808,2]
[392428466,1761465077563,-1696.5,0.00017808,2]
[392428467,1761465077572,-500.0,0.00017808,2]
[392428468,1761465077581,-555.68,0.00017808,2]
[392428469,1761465077591,-523.61,0.00017808,2]
[392428470,1761465077600,-602.62,0.00017808,2]
[392428471,1761465077609,-804.14,0.00017808,2]
[392428472,1761465077618,-938.7,0.00017808,2]
[392428473,1761465077627,-500.0,0.00017808,2]
[392428474,1761465077635,-1084.59,0.00017808,2]
[392428475,1761465077644,-754.82,0.00017808,2]
[392428476,1761465077653,-672.45,0.00017808,2]
[392428477,1761465077662,-536.64,0.00017808,2]
[392428478,1761465077671,-665.25,0.00017808,2]
[392428479,1761465077680,-1084.62,0.00017808,2]
[392428480,1761465077689,-1054.59,0.00017808,2]
[392428481,1761465077698,-514.82,0.00017808,2]
[392428482,1761465077707,-559.76,0.00017808,2]
[392428483,1761465077716,-500.0,0.00017808,2]
[392428484,1761465077727,-624.18,0.00017808,2]
[392428485,1761465077739,-500.0,0.00017808,2]
[392428486,1761465077748,-500.0,0.00017808,2]
[392428487,1761465077757,-588.78,0.00017808,2]
[392428488,1761465077766,-1181.93,0.00017808,2]
[392428489,1761465077775,-500.0,0.00017808,2]
[392428490,1761465077786,-913.81,0.00017808,2]
[392428491,1761465077799,-500.0,0.00017808,2]
[392428492,1761465077810,-1623.58,0.00017808,2]
[392428493,1761465077819,-500.0,0.00017808,2]
[392428494,1761465077827,-1892.25,0.00017808,2]
[392428495,1761465077837,-500.0,0.00017808,2]
[392428496,1761465077846,-500.0,0.00017808,2]
[392428497,1761465077855,-800.75,0.00017808,2]
[392428498,1761465077864,-500.0,0.00017808,2]
[392428499,1761465077873,-932.1,0.00017808,2]
[392428500,1761465077884,-500.0,0.00017808,2]
[392428501,1761465077895,-500.0,0.00017808,2]
[392428502,1761465077907,-2059.92,0.00017808,2]
[392428503,1761465077917,-2314.16,0.00017808,2]
[392428504,1761465077927,-1046.38,0.00017808,2]
[392428505,1761465077936,-500.0,0.00017808,2]
[392428506,1761465077950,-895.81,0.00017808,2]
[392428507,1761465077959,-748.72,0.00017808,2]
[392428508,1761465077968,-500.0,0.00017808,2]
[392428509,1761465077978,-500.0,0.00017808,2]
[392428510,1761465077988,-500.0,0.00017808,2]
[392428511,1761465077997,-1079.65,0.00017808,2]
[392428512,1761465078007,-566.6,0.00017808,2]
[392428513,1761465078016,-1178.12,0.00017808,2]
[392428514,1761465078026,-573.08,0.00017808,2]
[392428515,1761465078035,-1167.47,0.00017808,2]
[392428516,1761465078045,-1376.09,0.00017808,2]
[392428517,1761465078054,-500.0,0.00017808,2]
[392428518,1761465078064,-1805.66,0.00017808,2]
[392428519,1761465078072,-800.28,0.00017808,2]
[392428520,1761465078082,-504.37,0.00017808,2]
[392428521,1761465078092,-500.0,0.00017808,2]
[392428522,1761465078101,-1306.14,0.00017808,2]
[392428523,1761465078110,-2926.42,0.00017808,2]
[392428524,1761465078119,-578.74,0.00017808,2]
[392428525,1761465078130,-500.0,0.00017808,2]
[392428526,1761465078141,-500.0,0.00017808,2]
[392428527,1761465078150,-1800.49,0.00017808,2]
[392428528,1761465078160,-12323.94,0.00017808,2]
[392428529,1761465078170,-500.0,0.00017808,2]
[392428530,1761465078179,-860.45,0.00017808,2]
[392428531,1761465078188,-677.74,0.00017808,2]
[392428532,1761465078199,-1339.94,0.00017808,2]
[392428533,1761465078209,-1341.4,0.00017808,2]
[392428534,1761465078218,-577.94,0.00017808,2]
[392428535,1761465078228,-500.0,0.00017808,2]
[392428536,1761465078237,-500.0,0.00017808,2]
[392428537,1761465078248,-1161.78505326,0.00017825,3]
[392428538,1761465078257,-196.0,0.00017832,2]
[392428539,1761465078266,-587.0,0.00017854,2]
[392428540,1761465078275,-196.0,0.00017862,2]
[392428541,1761465078284,-1500.0,0.00017868,2]
[392428542,1761465078294,-340.18414367,0.00017868,2]
[392428543,1761465078303,-1500.0,0.00017868,2]
[392428544,1761465078312,-1500.0,0.00017868,2]
[392428545,1761465078321,-1500.0,0.00017868,2]
[392428546,1761465078330,-1500.0,0.00017868,2]
[392428547,1761465078339,-255.45180363,0.00017868,2]
[392428548,1761465078348,-1376.22034633,0.00017868,2]
[392428549,1761465078358,-1500.0,0.00017868,2]
[392428550,1761465078368,-1500.0,0.00017868,2]
[392428551,1761465078377,-1500.0,0.00017868,2]
[392428552,1761465078386,-1500.0,0.00017868,2]
[392428553,1761465078396,-1500.0,0.00017868,2]
[392428554,1761465078405,-1636.00660496,0.00017868,2]
[392428555,1761465078414,-1500.0,0.00017868,2]
[392428556,1761465078423,-1625.86504119,0.00017868,2]
[392428557,1761465078432,-1500.0,0.00017868,2]
[392428558,1761465078442,-1500.0,0.00017868,2]
[392428559,1761465078451,-1500.0,0.00017868,2]
[392428560,1761465078460,-1500.0,0.00017868,2]
[392428561,1761465078469,-1500.0,0.00017868,2]
[392428562,1761465078479,-1500.0,0.00017868,2]
[392428563,1761465078489,-1500.0,0.00017868,2]
[392428564,1761465078498,-1500.0,0.00017868,2]
[392428565,1761465078507,-1500.0,0.00017868,2]
[392428566,1761465078516,-1500.0,0.00017868,2]
[392428567,1761465078526,-1500.0,0.00017868,2]
[392428568,1761465078535,-955.42218243,0.00017868,2]
[392428569,1761465078545,-1500.0,0.00017868,2]
[392428570,1761465078554,-1500.0,0.00017868,2]
[392428571,1761465078563,-1500.0,0.00017868,2]
[392428572,1761465078572,-1327.33359806,0.00017868,2]
[392428573,1761465078582,-1500.0,0.00017868,2]
[392428574,1761465078591,-1500.0,0.00017868,2]
[392428575,1761465078601,-1057.31795192,0.00017868,2]
[392428576,1761465078611,-1500.0,0.00017868,2]
[392428577,1761465078621,-1500.0,0.00017868,2]
[392428578,1761465078632,-1500.0,0.00017868,2]
[392428579,1761465078641,-1500.0,0.00017868,2]
[392428580,1761465078651,-1500.0,0.00017868,2]
[392428581,1761465078661,-1500.0,0.00017868,2]
[392428582,1761465078671,-1500.0,0.00017868,2]
[392428583,1761465078680,-1500.0,0.00017868,2]
[392428584,1761465078688,-1500.0,0.00017868,2]
[392428585,1761465078698,-152.9774122,0.00017873,2]
[392428586,1761465078707,-162.06065153,0.00017873,2]
[392428587,1761465078716,-196.0,0.00017891,2]
[392428588,1761465078726,-196.0,0.00017921,2]
[392428589,1761465078735,-196.0,0.00017951,2]
[392428590,1761465078744,-3095.42,0.00017973,2]
[392428591,1761465078753,-196.0,0.00017981,2]
[392428592,1761465078762,-362.60378227,0.00017981,2]
[392428593,1761465078772,-627.58341037,0.00018,2]
[392428594,1761465078783,-4518.06168771,0.00018,2]
[392428595,1761465078793,-7034.22477366,0.00018,2]
[392428596,1761465078802,-110491.76858038,0.00018,2]
[392428597,1761465078811,-187.10934598,0.00018,2]
[392428598,1761465078820,-191.8197303,0.00018,2]
[392428599,1761465078829,-951.16426813,0.00018,2]
[392428600,1761465078838,-884.55199446,0.00018,2]
[392428601,1761465078848,-173.74614518,0.00018,2]
[392428602,1761465078857,-3389.76773074,0.00018,2]
[392428603,1761465078866,-160.0,0.00018005,5]
[392428604,1761465078876,-289.06594873,0.00018005,5]
[392428605,1761465078886,-196.0,0.00018011,2]
[392428606,1761465078895,-2351.0,0.00018033,2]
[392428607,1761465078904,-196.0,0.0001804,2]
[392428608,1761465078914,-196.0,0.0001807,2]
[392428609,1761465078923,-500.0,0.00018082,2]
[392428610,1761465078932,-500.0,0.00018082,2]
[392428611,1761465078944,-500.0,0.00018082,2]
[392428612,1761465078953,-506.46402361,0.00018082,2]
[392428613,1761465078962,-500.0,0.00018082,2]
[392428614,1761465078971,-464.18908449,0.00018082,2]
[392428615,1761465078981,-500.0,0.00018082,2]
[392428616,1761465078991,-500.0,0.00018082,2]
[392428617,1761465079000,-508.23,0.00018082,2]
[392428618,1761465079009,-730.25,0.00018082,2]
[392428619,1761465079018,-500.0,0.00018082,2]
[392428620,1761465079028,-500.0,0.00018082,2]
[392428621,1761465079037,-1000.0,0.00018082,2]
[392428622,1761465079046,-500.0,0.00018082,2]
[392428623,1761465079055,-500.0,0.00018082,2]
[392428624,1761465079064,-500.0,0.00018082,2]
[392428625,1761465079074,-500.0,0.00018082,2]
[392428626,1761465079083,-500.0,0.00018082,2]
[392428627,1761465079092,-500.0,0.00018082,2]
[392428628,1761465079101,-500.0,0.00018082,2]
[392428629,1761465079110,-500.0,0.00018082,2]
[392428630,1761465079119,-500.0,0.00018082,2]
[392428631,1761465079129,-500.0,0.00018082,2]
[392428632,1761465079138,-638.1,0.00018082,2]
[392428633,1761465079147,-500.0,0.00018082,2]
[392428634,1761465079158,-500.0,0.00018082,2]
[392428635,1761465079167,-500.0,0.00018082,2]
[392428636,1761465079302,-500.0,0.00018082,2]
[392428637,1761465079311,-500.0,0.00018082,2]
[392428638,1761465079320,-500.0,0.00018082,2]
[392428639,1761465079329,-500.0,0.00018082,2]
[392428640,1761465079339,-852.77,0.00018082,2]
[392428641,1761465079348,-419.44304377,0.00018082,2]
[392428642,1761465079357,-500.0,0.00018082,2]
[392428643,1761465079366,-742.96,0.00018082,2]
[392428644,1761465079375,-1003.4,0.00018082,2]
[392428645,1761465079384,-1352.49,0.00018082,2]
[392428646,1761465079393,-500.0,0.00018082,2]
[392428647,1761465079402,-1883.36,0.00018082,2]
[392428648,1761465079411,-780.75,0.00018082,2]
[392428649,1761465079421,-747.54,0.00018082,2]
[392428650,1761465079431,-500.0,0.00018082,2]
[392428651,1761465079442,-500.0,0.00018082,2]
[392428652,1761465079452,-500.0,0.00018082,2]
[392428653,1761465079462,-1022.71,0.00018082,2]
[392428654,1761465079472,-500.0,0.00018082,2]
[392428655,1761465079483,-583.81627635,0.00018082,2]
[392428656,1761465079494,-500.0,0.00018082,2]
[392428657,1761465079505,-816.59,0.00018082,2]
[392428658,1761465079514,-639.83828297,0.00018082,2]
[392428659,1761465079525,-1068.51,0.00018082,2]
[392428660,1761465079535,-503.25924627,0.00018082,2]
[392428661,1761465079545,-751.87,0.00018082,2]
[392428662,1761465079554,-1197.52,0.00018082,2]
[392428663,1761465079565,-1161.27,0.00018082,2]
[392428664,1761465079576,-500.0,0.00018082,2]
[392428665,1761465079589,-504.44420749,0.00018082,2]
[392428666,1761465079599,-591.79510268,0.00018082,2]
[392428667,1761465079609,-722.78,0.00018082,2]
[392428668,1761465079618,-1139.52,0.00018082,2]
[392428669,1761465079628,-694.35,0.00018082,2]
[392428670,1761465079639,-1024.4,0.00018082,2]
[392428671,1761465079649,-500.0,0.00018082,2]
[392428672,1761465079660,-505.81196138,0.00018082,2]
[392428673,1761465079669,-500.0,0.00018082,2]
[392428674,1761465079679,-500.0,0.00018082,2]
[392428675,1761465079690,-604.05,0.00018082,2]
[392428676,1761465079700,-519.6603741,0.00018082,2]
[392428677,1761465079710,-500.0,0.00018082,2]
[392428678,1761465079720,-606.43851582,0.00018082,2]
[392428679,1761465079730,-516.08385027,0.00018082,2]
[392428680,1761465079739,-500.0,0.00018082,2]
[392428681,1761465079748,-500.0,0.00018082,2]
[392428682,1761465079757,-500.0,0.00018082,2]
[392428683,1761465079767,-720.79,0.00018082,2]
[392428684,1761465079776,-822.01,0.00018082,2]
[392428685,1761465079787,-500.0,0.00018082,2]
[392428686,1761465079796,-1373.22,0.00018082,2]
[392428687,1761465079805,-791.3,0.00018082,2]
[392428688,1761465079814,-500.0,0.00018082,2]
[392428689,1761465079823,-500.0,0.00018082,2]
[392428690,1761465079834,-1124.15,0.00018082,2]
[392428691,1761465079844,-1133.45,0.00018082,2]
[392428692,1761465079854,-500.0,0.00018082,2]
[392428693,1761465079863,-216.35583203,0.00018082,2]
[392428694,1761465079872,-579.37,0.00018082,2]
[392428695,1761465079881,-834.52,0.00018082,2]
[392428696,1761465079891,-734.95,0.00018082,2]
[392428697,1761465079900,-500.0,0.00018082,2]
[392428698,1761465079909,-500.0,0.00018082,2]
[392428699,1761465079918,-500.0,0.00018082,2]
[392428700,1761465079928,-500.0,0.00018082,2]
[392428701,1761465079937,-500.0,0.00018082,2]
[392428702,1761465079949,-500.0,0.00018082,2]
[392428703,1761465079958,-519.96,0.00018082,2]
[392428704,1761465079969,-500.0,0.00018082,2]
[392428705,1761465079978,-500.0,0.00018082,2]
[392428706,1761465079990,-500.0,0.00018082,2]
[392428707,1761465079999,-1043.96,0.00018082,2]
[392428708,1761465080008,-500.0,0.00018082,2]
[392428709,1761465080020,-717.23,0.00018082,2]
[392428710,1761465080029,-500.0,0.00018082,2]
[392428711,1761465080039,-754.11,0.00018082,2]
[392428712,1761465080048,-500.0,0.00018082,2]
[392428713,1761465080057,-500.0,0.00018082,2]
[392428714,1761465080066,-500.0,0.00018082,2]
[392428715,1761465080075,-500.0,0.00018082,2]
[392428716,1761465080084,-556.7,0.00018082,2]
[392428717,1761465080094,-596.45,0.00018082,2]
[392428718,1761465080102,-500.0,0.00018082,2]
[392428719,1761465080111,-500.0,0.00018082,2]
[392428720,1761465080120,-1625.42,0.00018082,2]
[392428721,1761465080130,-727.75,0.00018082,2]
[392428722,1761465080139,-523.12148977,0.00018082,2]
[392428723,1761465080149,-500.0,0.00018082,2]
[392428724,1761465080158,-500.0,0.00018082,2]
[392428725,1761465080168,-2020.6,0.00018082,2]
[392428726,1761465080177,-500.0,0.00018082,2]
[392428727,1761465080186,-500.0,0.00018082,2]
[392428728,1761465080195,-958.14,0.00018082,2]
[392428729,1761465080204,-500.0,0.00018082,2]
[392428730,1761465080213,-799.25,0.00018082,2]
[392428731,1761465080222,-802.12,0.00018082,2]
[392428732,1761465080231,-500.0,0.00018082,2]
[392428733,1761465080241,-1511.53,0.00018082,2]
[392428734,1761465080250,-536.38,0.00018082,2]
[392428735,1761465080259,-500.0,0.00018082,2]
[392428736,1761465080268,-977.83,0.00018082,2]
[392428737,1761465080277,-1018.09,0.00018082,2]
[392428738,1761465080287,-1217.77,0.00018082,2]
[392428739,1761465080295,-735.46,0.00018082,2]
[392428740,1761465080305,-500.0,0.00018082,2]
[392428741,1761465080314,-500.0,0.00018082,2]
[392428742,1761465080323,-532.95,0.00018082,2]
[392428743,1761465080332,-565.47,0.00018082,2]
[392428744,1761465080341,-928.31,0.00018082,2]
[392428745,1761465080350,-520.86,0.00018082,2]
[392428746,1761465080359,-500.0,0.00018082,2]
[392428747,1761465080368,-500.0,0.00018082,2]
[392428748,1761465080378,-816.06,0.00018082,2]
[392428749,1761465080387,-500.0,0.00018082,2]
[392428750,1761465080396,-1060.12,0.00018082,2]
[392428751,1761465080406,-500.0,0.00018082,2]
[392428752,1761465080415,-992.37,0.00018082,2]
[392428753,1761465080424,-1689.08,0.00018082,2]
[392428754,1761465080432,-1696.5,0.00018082,2]
[392428755,1761465080441,-500.0,0.00018082,2]
[392428756,1761465080450,-555.68,0.00018082,2]
[392428757,1761465080459,-523.61,0.00018082,2]
[392428758,1761465080468,-602.62,0.00018082,2]
[392428759,1761465080477,-804.14,0.00018082,2]
[392428760,1761465080486,-938.7,0.00018082,2]
[392428761,1761465080495,-500.0,0.00018082,2]
[392428762,1761465080504,-1084.59,0.00018082,2]
[392428763,1761465080513,-754.82,0.00018082,2]
[392428764,1761465080522,-672.45,0.00018082,2]
[392428765,1761465080531,-536.64,0.00018082,2]
[392428766,1761465080540,-665.25,0.00018082,2]
[392428767,1761465080549,-1084.62,0.00018082,2]
[392428768,1761465080558,-1054.59,0.00018082,2]
[392428769,1761465080568,-514.82,0.00018082,2]
[392428770,1761465080577,-559.76,0.00018082,2]
[392428771,1761465080587,-510.05626543,0.00018082,2]
[392428772,1761465080595,-500.0,0.00018082,2]
[392428773,1761465080604,-624.18,0.00018082,2]
[392428774,1761465080613,-500.0,0.00018082,2]
[392428775,1761465080622,-588.78,0.00018082,2]
[392428776,1761465080631,-1181.93,0.00018082,2]
[392428777,1761465080640,-438.751433,0.00018082,2]
[392428778,1761465080649,-913.81,0.00018082,2]
[392428779,1761465080658,-500.0,0.00018082,2]
[392428780,1761465080667,-1623.58,0.00018082,2]
[392428781,1761465080676,-500.0,0.00018082,2]
[392428782,1761465080685,-1892.25,0.00018082,2]
[392428783,1761465080695,-507.78008192,0.00018082,2]
[392428784,1761465080704,-500.0,0.00018082,2]
[392428785,1761465080712,-800.75,0.00018082,2]
[392428786,1761465080721,-500.0,0.00018082,2]
[392428787,1761465080731,-932.1,0.00018082,2]
[392428788,1761465080739,-500.0,0.00018082,2]
[392428789,1761465080749,-500.0,0.00018082,2]
[392428790,1761465080758,-2059.92,0.00018082,2]
[392428791,1761465080767,-2314.16,0.00018082,2]
[392428792,1761465080776,-1046.38,0.00018082,2]
[392428793,1761465080785,-500.0,0.00018082,2]
[392428794,1761465080794,-895.81,0.00018082,2]
[392428795,1761465080803,-748.72,0.00018082,2]
[392428796,1761465080812,-500.0,0.00018082,2]
[392428797,1761465080822,-500.0,0.00018082,2]
[392428798,1761465080831,-500.0,0.00018082,2]
[392428799,1761465080841,-1079.65,0.00018082,2]
[392428800,1761465080850,-566.6,0.00018082,2]
[392428801,1761465080860,-1178.12,0.00018082,2]
[392428802,1761465080869,-573.08,0.00018082,2]
[392428803,1761465080879,-1167.47,0.00018082,2]
[392428804,1761465080887,-1376.09,0.00018082,2]
[392428805,1761465080896,-500.0,0.00018082,2]
[392428806,1761465080906,-1805.66,0.00018082,2]
[392428807,1761465080915,-800.28,0.00018082,2]
[392428808,1761465080924,-504.37,0.00018082,2]
[392428809,1761465080934,-500.0,0.00018082,2]
[392428810,1761465080946,-1306.14,0.00018082,2]
[392428811,1761465080955,-578.74,0.00018082,2]
[392428812,1761465080964,-2926.42,0.00018082,2]
[392428813,1761465080974,-500.0,0.00018082,2]
[392428814,1761465080983,-344.81266852,0.00018082,2]
[392428815,1761465080992,-1800.49,0.00018082,2]
[392428816,1761465081000,-12323.94,0.00018082,2]
[392428817,1761465081010,-500.0,0.00018082,2]
[392428818,1761465081019,-860.45,0.00018082,2]
[392428819,1761465081027,-677.74,0.00018082,2]
[392428820,1761465081036,-1339.94,0.00018082,2]
[392428821,1761465081046,-1341.4,0.00018082,2]
[392428822,1761465081055,-577.94,0.00018082,2]
[392428823,1761465081064,-500.0,0.00018082,2]
[392428824,1761465081073,-500.0,0.00018082,2]
[392428825,1761465081081,-5063.8020866,0.00018082,2]
[392428826,1761465081091,-1873.49280407,0.000181,2]
[392428827,1761465081100,-507.19281009,0.00018121,2]
[392428828,1761465081110,-260.0,0.00018144,2]
[392428829,1761465081119,-187.10934598,0.000182,2]
[392428830,1761465081128,-191.8197303,0.000182,2]
[392428831,1761465081137,-951.16426813,0.000182,2]
[392428832,1761465081146,-884.55199446,0.000182,2]
[392428833,1761465081155,-173.74614518,0.000182,2]
[392428834,1761465081164,-3389.76773074,0.000182,2]
[392428835,1761465081173,-163.17280106,0.00018219,2]
[392428836,1761465081182,-632.0,0.00018229,2]
[392428837,1761465081190,-984.0,0.00018229,2]
[392428838,1761465081199,-2166.0,0.00018229,2]
[392428839,1761465081208,-3095.42,0.00018247,2]
[392428840,1761465081217,-3500.0,0.0001826,2]
[392428841,1761465081226,-3500.0,0.0001826,2]
[392428842,1761465081235,-3500.0,0.0001826,2]
[392428843,1761465081244,-3500.0,0.0001826,2]
[392428844,1761465081253,-3500.0,0.0001826,2]
[392428845,1761465081262,-3500.0,0.0001826,2]
[392428846,1761465081271,-3500.0,0.0001826,2]
[392428847,1761465081280,-500.0,0.00018271,2]
[392428848,1761465081289,-630.76997288,0.00018295,2]
[392428849,1761465081298,-163.17280106,0.00018301,2]
[392428850,1761465081308,-600.0,0.00018355,2]
[392428851,1761465081316,-500.0,0.00018356,2]
[392428852,1761465081325,-500.0,0.00018356,2]
[392428853,1761465081334,-500.0,0.00018356,2]